Cogmind - Beta 13 @@@ ROGUE MODE // 2024.06.05 @ 19:28:38 Player: ImmortalXCurse Result: Destroyed by as-82313 with Assembled Heavy Rifle Performance ------------- Evolutions (0) 0 Regions Visited (3) 600 Robots Destroyed (11) 55 Value Destroyed (194) 194 Prototype IDs (0) 0 Alien Tech Used (0) 0 Bonus (300) 300 TOTAL SCORE: 1149 Bonus ------- Aligned with FarCom 300 Cogmind --------- Core Integrity 0/250 Matter 224/300 Energy 125/125 System Corruption 2% Temperature Warm (130) Movement Treading (160) Location -10/Exiles Parts ------- > --- POWER (1) -------- Light Ion Engine > --- PROPULSION (2) --- Light Treads > --- UTILITY (2) ------ Visual Processing Unit Light Armor Plating > --- WEAPON (2) ------- Light Assault Rifle > --- INVENTORY (5) ---- (None) Peak State ------------ > --- POWER ------------ Ion Engine > --- PROPULSION ------- Light Treads Wheel > --- UTILITY ---------- Small Storage Unit Improved Terrain Scanner > --- WEAPON ----------- Medium Laser Light Assault Rifle > --- INVENTORY -------- Light Ion Engine Light Treads Wheel Light Assault Rifle [Rating: 9] Favorites ----------- Power Light Ion Engine Engine Light Ion Engine Propulsion Light Treads Treads Light Treads Wheel Wheel Utility Light Armor Plating Device Improved Terrain Scanner Storage Small Storage Unit Processor Visual Processing Unit Protection Light Armor Plating Weapon Light Assault Rifle Energy Gun Medium Laser Ballistic Gun Light Assault Rifle Build | -11 -10 -10 -10 ------- Run | Yrd Mat Min Exi Slots Evolved . | . . . . Power . | . . . . Propulsion . | . . . . Utility . | . . . . Weapon . | . . . . Parts Attached 15 | 7 3 . 5 Power 3 | 1 1 . 1 Engine 3 | 1 1 . 1 Core . | . . . . Reactor . | . . . . Propulsion 3 | 2 . . 1 Treads 2 | 1 . . 1 Leg . | . . . . Wheel 1 | 1 . . . Hover . | . . . . Flight . | . . . . Utility 6 | 2 2 . 2 Device 2 | 1 1 . . Storage 1 | 1 . . . Processor 1 | . . . 1 Hackware . | . . . . Protection 2 | . 1 . 1 Artifact . | . . . . Weapon 3 | 2 . . 1 Energy Gun 1 | 1 . . . Energy Cannon . | . . . . Ballistic Gun 2 | 1 . . 1 Ballistic Cannon . | . . . . Launcher . | . . . . Special Weapon . | . . . . Impact Weapon . | . . . . Slashing Weapon . | . . . . Piercing Weapon . | . . . . Special Melee Weapon . | . . . . Unidentified Prototypes . | . . . . Parts Lost 3 | . 1 2 . Power 1 | . . 1 . Propulsion . | . . . . Utility 1 | . 1 . . Weapon 1 | . . 1 . Highest Loss Streak 2 | . 1 2 . To Critical Strikes . | . . . . Average Slot Usage (%) 78 | . 98 14 71 Engine 13 | . 14 2 14 Treads 13 | . 14 2 14 Wheel 5 | . 14 2 . Device 3 | . 9 2 . Storage 5 | . 14 2 . Processor 7 | . . . 14 Protection 9 | . 3 . 14 Energy Gun 5 | . 14 2 . Ballistic Gun 13 | . 14 2 14 Naked Turns 58 | . . 58 . Heaviest Build 16 | 14 16 14 7 Greatest Support 20 | 10 20 10 20 Greatest Overweight (x) 3 | 3 1 1 . Average Overweight (x) . | . . . . Largest Inventory Capacity 8 | 8 8 8 5 Average Capacity 6 | 7 8 5 5 Most Carried 8 | 8 8 8 4 Average Carried 3 | 5 6 5 . Final Capacity 8 | 8 8 5 5 Final Carried 8 | 4 8 5 . Class Distribution -------------------- 100% | Mutant Dominant Class ---------------- Mutant | -10/Materials Mutant | -10/Mines Mutant | -10/Exiles Resources | -11 -10 -10 -10 ----------- Run | Yrd Mat Min Exi Matter Collected 394 | 181 213 . . Remotely . | . . . . Salvage Created 300 | 10 290 . . Parts 22 | 3 19 . . Haulers Intercepted . | . . . . Recyclers Shooed . | . . . . Parts Field Recycled . | . . . . Retrieved Matter . | . . . . Parts Self-Destructed . | . . . . Prevented . | . . . . Kills | -11 -10 -10 -10 ------- Run | Yrd Mat Min Exi Combat Hostiles Destroyed 8 | . 8 . . Guns 8 | . 8 . . Classes Destroyed 5 | 1 4 . . Tunneler 1 | 1 . . . Recycler 1 | . 1 . . Watcher 1 | . 1 . . Swarmer 5 | . 5 . . Grunt 3 | . 3 . . Best Kill Streak 4 | 1 4 . . Combat Bots Only 3 | . 3 . . Max Kills in Single Turn 1 | 1 1 . . Gunslinging . | . . . . Exploded . | . . . . Melee . | . . . . Uniques/NPCs Destroyed . | . . . . Combat | -11 -10 -10 -10 -------- Run | Yrd Mat Min Exi Hostile Shots Fired 80 | . 42 32 6 Missed 26 | . 10 14 2 Damage Taken 673 | . 305 309 59 Core 250 | . 80 141 29 Absorbed by Shields . | . . . . Core Remaining (%) 100 | 100 . . . Volleys Fired 32 | 2 30 . . Largest 2 | 1 2 . . Hottest 70 | 50 70 . . Shots Fired 59 | 2 56 . 1 Gun 59 | 2 56 . 1 Cannon . | . . . . Launcher . | . . . . Special . | . . . . Kinetic 27 | . 26 . 1 Thermal 32 | 2 30 . . Explosive . | . . . . Electromagnetic . | . . . . Robot Hit Streak 5 | 1 5 . . Robot Miss Streak 3 | 1 3 . 1 Penetration Max . | . . . . Secondary Targets 2 | . 2 . . Max Gunslinging Chain 1 | . 1 . . Shots Hit Robots 34 | 1 33 . . Core Hits 18 | 1 17 . . Critical Kills . | . . . . Critical Parts Destroyed . | . . . . Critical Strikes 4 | . 4 . . Burn 4 | . 4 . . Melee Attacks . | . . . . Impact . | . . . . Slashing . | . . . . Piercing . | . . . . Sneak Attacks . | . . . . Combat Hostiles . | . . . . Follow-up Attacks . | . . . . Damage Inflicted 411 | 13 398 . . Guns 406 | 13 393 . . Cannons . | . . . . Explosions . | . . . . Melee . | . . . . Ramming 5 | . 5 . . Kinetic 132 | . 132 . . Thermal 274 | 13 261 . . Explosive . | . . . . Electromagnetic . | . . . . Impact . | . . . . Slashing . | . . . . Piercing . | . . . . Highest Corruption 2 | . 1 1 2 Average Corruption 1 | . 1 1 1 Corruption Purged . | . . . . Corruption Blocked . | . . . . Effects 13 | . 3 . 10 Message Errors 4 | . 1 . 3 Matter Fused 3 | . . . 3 Heat Flow Errors 1 | . . . 1 Energy Discharges 1 | . . . 1 Data Loss (minor) 2 | . 1 . 1 Data Loss (major) 1 | . 1 . . Misfires 1 | . . . 1 Overload Shots . | . . . . Overflow Damage . | . . . . Projectiles . | . . . . Explosions . | . . . . Melee . | . . . . Knockbacks . | . . . . Impact . | . . . . Kinetic . | . . . . Secondary . | . . . . Self-Inflicted Damage 2 | . 2 . . Shots . | . . . . Rammed 1 | . 1 . . Targets Rammed 1 | . 1 . . Kicked . | . . . . Crushed . | . . . . Highest Temperature 163 | 20 130 . 163 Average Temperature 57 | 12 57 . 110 Received Heat Transfer 200 | . 111 89 . Siege Activations . | . . . . Robots Corrupted . | . . . . Combat Hostiles . | . . . . Parts Fried . | . . . . Impact Corruptions . | . . . . Robots Melted 1 | . 1 . . Combat Hostiles . | . . . . Parts Melted 4 | . 4 . . Heat Transferred 1110 | 37 1073 . . Parts Sabotaged . | . . . . Parts Stolen . | . . . . Parts Stripped . | . . . . Power Chain Reactions . | . . . . Alert | -11 -10 -10 -10 ------- Run | Yrd Mat Min Exi Peak Influence 296 | 5 296 42 . Initial 42 | . 3 42 . Average 100 | . 126 28 . Maximum Alert Level 1 | . 1 . . Low Security (%) 84 | 100 80 100 . Level 1 15 | . 19 . . Level 2 . | . . . . Level 3 . | . . . . Level 4 . | . . . . Level 5 . | . . . . High Security . | . . . . Max Security . | . . . . Squads Dispatched 4 | . 4 . . Investigation 1 | . 1 . . Extermination . | . . . . Reinforcement 3 | . 3 . . Assault . | . . . . Garrison . | . . . . Intercept . | . . . . Searches Triggered . | . . . . Construction Impeded . | . . . . Haulers Reinforced . | . . . . Active Scanning Responses . | . . . . Cargo Convoy Interrupts . | . . . . Stealth | -11 -10 -10 -10 --------- Run | Yrd Mat Min Exi Distress Signals 1 | . 1 . . Communications Jammed . | . . . . Distress Signals . | . . . . Times Spotted 50 | . 19 22 9 Peak Tracking Total 20 | . 5 20 15 Tactical Retreats 1 | . 1 . . Traps | -11 -10 -10 -10 ------- Run | Yrd Mat Min Exi Traps Triggered 1 | . 1 . . Indirectly . | . . . . Trap Hack Attempts . | . . . . Triggered . | . . . . Disarmed . | . . . . Reprogrammed . | . . . . Reused . | . . . . Traps Extracted . | . . . . Installed . | . . . . Triggered . | . . . . Objects Rigged 5 | . 5 . . Machines | -11 -10 -10 -10 ---------- Run | Yrd Mat Min Exi Machines Disabled . | . . . . Max in Single Turn . | . . . . Machines Repaired . | . . . . Machines Dismantled . | . . . . Machines Sabotaged . | . . . . Overloaded Fab Kills . | . . . . Hacking | -11 -10 -10 -10 --------- Run | Yrd Mat Min Exi Machines Accessed 6 | . 3 . 3 Terminals 3 | . 3 . . Fabricators . | . . . . Repair Stations . | . . . . Recycling Units . | . . . . Scanalyzers . | . . . . Garrison Access . | . . . . Total Hacks 34 | . 8 . 26 Successful 28 | . 2 . 26 Failed 6 | . 6 . . Catastrophic 2 | . 2 . . Database Lockouts . | . . . . Manual 9 | . 8 . 1 Terminals 8 | . 8 . . Fabricators . | . . . . Repair Stations . | . . . . Recycling Units . | . . . . Scanalyzers . | . . . . Garrison Access . | . . . . Terminal Hacks 26 | . . . 26 Record 26 | . . . 26 Fabricator Hacks . | . . . . Repair Station Hacks . | . . . . Recycling Unit Hacks . | . . . . Scanalyzer . | . . . . Garrison Access Hacks . | . . . . Unauthorized Hacks 2 | . 2 . . Terminals 2 | . 2 . . Detonate 2 | . 2 . . Fabricators . | . . . . Repair Stations . | . . . . Recycling Units . | . . . . Scanalyzers . | . . . . Garrison Access . | . . . . Data Cores Recovered . | . . . . Used . | . . . . Hacking Detections 3 | . 3 . . Full Trace Events . | . . . . Feedback Events . | . . . . Feedback Blocked . | . . . . Robot Schematics Acquired . | . . . . Robots Built . | . . . . Authchips . | . . . . Time . | . . . . Total Robot Build Rating . | . . . . Part Schematics Acquired . | . . . . Parts Built . | . . . . Authchips . | . . . . Time . | . . . . Total Part Build Rating . | . . . . Parts Repaired . | . . . . Time . | . . . . Parts Recycled . | . . . . Recycled Matter . | . . . . Retrieved Matter . | . . . . Retrieved Components . | . . . . Parts Scanalyzed . | . . . . Part Schematics Acquired . | . . . . Parts Damaged . | . . . . Bothacking | -11 -10 -10 -10 ------------ Run | Yrd Mat Min Exi Used RIF Installer . | . . . . Robots Hacked . | . . . . Non-combat . | . . . . Combat . | . . . . Robot Hacks Applied . | . . . . Relay Couplers Released . | . . . . Fabnet Peak Effective % . | . . . . Robots Rewired . | . . . . Allies Hacked . | . . . . Hacks Repelled . | . . . . Allies | -11 -10 -10 -10 -------- Run | Yrd Mat Min Exi Total Allies . | . . . . Largest Group . | . . . . Highest-Rated Group . | . . . . Highest-Rated Ally . | . . . . Total Orders . | . . . . Ally Attacks . | . . . . Total Damage . | . . . . Kills . | . . . . Allies Corrupted . | . . . . Allies Melted . | . . . . Intel | -11 -10 -10 -10 ------- Run | Yrd Mat Min Exi Robot Analysis Total . | . . . . Derelict Logs Recovered . | . . . . Drone Launches . | . . . . Drone Recoveries . | . . . . Exploration | -11 -10 -10 -10 ------------- Run | Yrd Mat Min Exi Turns Passed 1504 | 90 550 72 792 Spaces Moved 1150 | 74 453 131 492 Core 152 | 35 . 117 . Treads 494 | . 2 . 492 Legs . | . . . . Wheels 504 | 39 451 14 . Hover . | . . . . Flight . | . . . . Fastest Speed 50 | 50 95 50 160 Average Speed 118 | 95 95 54 160 Slowest Speed 200 | 200 160 95 160 Overloaded Moves . | . . . . Propulsion Burnouts . | . . . . Robots Hopped . | . . . . Cave-ins Triggered . | . . . . Exploration Rate (%) 50 | 5 69 46 82 Regions Visited 3 Branch Regions 2 Pre-discovered Areas . | . . . . Known Exits Taken . | . . . . Unknown Exits Taken 3 | 1 1 1 . Scrap Searched . | . . . . Spaces Dug . | . . . . Terrain Destroyed . | . . . . Melee . | . . . . Projectile . | . . . . AOE . | . . . . Terrain Rammed . | . . . . Walls Destroyed . | . . . . Machines Disabled . | . . . . Actions | -11 -10 -10 -10 --------- Run | Yrd Mat Min Exi Total 1237 | 90 520 130 497 Wait 26 | . 26 . . Move 1147 | 73 452 130 492 Hop . | . . . . Pick Up 14 | 8 6 . . Fast Attach 3 | 3 . . . Attach 10 | 4 1 . 5 Detach . | . . . . Swap 2 | . 2 . . Drop 2 | . 2 . . Fire 32 | 2 30 . . Melee . | . . . . Ram 1 | . 1 . . Kick . | . . . . Crush . | . . . . Escape Stasis . | . . . . Rewire . | . . . . Trap . | . . . . Miscellaneous . | . . . . Route ------- -11/Scrapyard -10/Materials -10/Mines -10/Exiles (discovered 1 exit: [*Min]) History --------- Turn | Location | Event 15 | -11/Scrapyard | Discovered new exit (range 16) 91 | -11/Scrapyard | Entered Materials 301 | -10/Materials | Build established: Mutant 526 | -10/Materials | Discovered new exit (range 9) 641 | -10/Materials | Entered Mines 642 | -10/Mines | Assembled infested the area 655 | -10/Mines | Core integrity fell below 50% 655 | -10/Mines | Released all parts (5) 699 | -10/Mines | Core integrity fell below 20% 710 | -10/Mines | Discovered new exit (range 5) 713 | -10/Mines | Entered Exiles 763 | -10/Exiles | Discovered new exit (range 15) 795 | -10/Exiles | Met 8R-AWN 837 | -10/Exiles | Met EX-HEX 910 | -10/Exiles | Met EX-BIN 946 | -10/Exiles | Aligned with FarCom system 947 | -10/Exiles | Given EX-Vault access code 1194 | -10/Exiles | Met EX-DEC 1313 | -10/Exiles | Visited The Gauntlet 1487 | -10/Exiles | Attacked by the Exiles 1505 | -10/Exiles | Destroyed by as-82313 with Assembled Heavy Rifle Last Messages --------------- trouble one day with crazy experiments"? Whatever! ZX-C33: The latest FarCom iteration passed all tests with flying colors, we'll be weaving between patrols like ghosts in no time! I probably said something like that last time, but hopefully no one remembers what really happened. AM-PHS: That's RA-1N3's workstation, which we keep unoccupied as a tribute. RA-1N3 was always up for doing crazy stuff, the only one brave enough to try out the Chronowheel, only to never be seen again. 01487_ System corrupted: FCS attempts to trigger Lgt. Assault Rifle. 01487_ System corrupted: Lgt. Assault Rifle misfires. 01487_ EXILES: Hostile robot within lab perimeter. Defensive protocols time, folks! 01502_ System corrupted: Heat flow error (+179). Map ----- +----------------------------------------------------+ | ?????????????#"""" | | ?????????????## | | ??????????????#" " "" | | ??????????????#"""" ""## ##""" " " | | ??????????????#"" ""#### #?####""" | | ??????????????#" """"##??#??#????###"" | | ??????????????#""" """#?????????????### | | ??????????????## ""##???????????????? | | ???????????????#"" """##????????????????? | | ???????????????##""" ##?????????????????? | | ????????????????##"""" ##??????????????????? | | ?????????????????### a #???????????????????? | | ???????????????????##### ##???????????????????? | | ???????????????????????## #????????????????????? | | ????????????????????????#z #????????????????????? | | ????????????????????????# z#????????????????????? | | ????????????????????????# a #????????????????????? | | ????######????#####?????# a #????????????????????? | | ???"""""""#??#"""""""???# #????????????????????? | | ??#"""""""#??#"""""""#??#ca #????????????????????? | | """""""" "#??#" """"#??# #????????????????????? | | ""#""" """#??#"" """#??#z #????????????????????? | | ""#"" ""????"" ""???# #????????????????????? | | ""###"""########"""###### ########?#####???????? | | """"" """""""" """""" """""""#"""""#???????? | | """" """"""" z@ "#"" ""#???????? | | z " ""#???????? | | " " "#???????? | | " """#???????? | | "" #"" ""#???????? | | """ " """"" " """" """""#"""""#???????? | | #####"""###""###"""########"""######?#####???????? | | ???"" ""#""#"" ""????"" ""?????????????????? | | ??#""" ""#""#""" ""#??#"" """#????????????????? | | ??#" """"""""#" " "#??#"""""""#????????????????? | | ??#"""""""#""#"""""""#??#"" """"#????????????????? | | ??#"""""""#??#"""""""#??#"""""""?????????????????? | | ????##"##??????#######????####???????????????????? | | ?????????????????????????????????????????????????? | | ?????????????????????????????????????????????????? | | ?????????????????????????????????????????????????? | | ?????????????????????????????????????????????????? | | | | | | | | | | | | | | | | | +----------------------------------------------------+ Best States ------------- Heat Dissipation 25 Energy Generation 10 Energy Capacity 250 Matter Stores 300 Matter Capacity 300 Sight Range 18 Terrain Scan Range 16 Terrain Scan Density 10 Armor Coverage 150 Evasion (%) 50 Recoil Reduction 1 Item Schematics ----------------- None Robot Schematics ------------------ None Fabricated ------------ Nothing Alien Tech Used ----------------- None Achievements -------------- Hunted Librarian Slippery One True Hacker Challenges ------------ None Game ------ Seed HybridChainCompactor Manual? 0 Play Time 00:24:53 Cumulative 4.7 hours Start 2024.06.05 @ 18:57:00 End 2024.06.05 @ 19:28:38 Sessions 1 Manual Loads 0 Difficulty Rogue Special Mode None Game No. 6 Rogue 6 Adventurer 0 Explorer 0 Win Type - Total 0 Types 0/0/0/0/0/0/0/0/0 Lore% 12 Gallery% 12 Achievement% 12 Wizard Run 0 Options --------- Layout 2 ASCII 0 Keyboard 0 Movement Vi Keybinds 0 Fullscreen 2 Font 48/Smallcaps Map View 50x44 Zoom Use 0% Tactical HUD 1 Map Filters NONE Filters NONE Steam 1 RUN: 4e425840-8b4b-4d63-9bca-e3c18253016a